[Event "Early-Titled-Tuesday-Blitz-April-23-2024"]
[Site "Chess.com"]
[Date "2024.04.23"]
[Round "11"]
[White "nicolochessit"]
[Black "UnTucopalaTimba"]
[Result "0-1"]
[WhiteElo "2230"]
[BlackElo "2033"]
[TimeControl "180+1"]
[EndTime "10:12:52 PDT"]
[Termination "UnTucopalaTimba won on time"]

1. e4 {[%clk 0:03:00.9]} 1... c6 {[%clk 0:02:59.7]} 2. d4 {[%clk 0:02:49.4]}
2... d5 {[%clk 0:02:59.4]} 3. Nc3 {[%clk 0:02:49.2]} 3... dxe4 {[%clk 0:02:59]}
4. Nxe4 {[%clk 0:02:50.1]} 4... Bf5 {[%clk 0:02:58.9]} 5. Ng3 {[%clk 0:02:50.1]}
5... Bg6 {[%clk 0:02:59]} 6. h4 {[%clk 0:02:50.7]} 6... h6 {[%clk 0:02:57.8]} 7.
Nh3 {[%clk 0:02:51.1]} 7... Nd7 {[%clk 0:02:53.8]} 8. Nf4 {[%clk 0:02:50.8]}
8... Bh7 {[%clk 0:02:47.6]} 9. Bc4 {[%clk 0:02:50.4]} 9... Ngf6 {[%clk
0:02:43.3]} 10. Qe2 {[%clk 0:02:46.8]} 10... Qc7 {[%clk 0:02:35.3]} 11. O-O
{[%clk 0:02:34.2]} 11... g5 {[%clk 0:02:31.6]} 12. hxg5 {[%clk 0:02:27.8]} 12...
hxg5 {[%clk 0:02:31.4]} 13. Nfh5 {[%clk 0:02:14.8]} 13... Nxh5 {[%clk
0:02:30.5]} 14. Qxh5 {[%clk 0:02:12.1]} 14... O-O-O {[%clk 0:02:18.9]} 15. Bxg5
{[%clk 0:02:08]} 15... f6 {[%clk 0:02:14.5]} 16. Be3 {[%clk 0:02:01.4]} 16...
Bg7 {[%clk 0:02:13.1]} 17. Qf7 {[%clk 0:01:56.6]} 17... Bf8 {[%clk 0:02:08.2]}
18. Qh5 {[%clk 0:01:46.3]} 18... Bg7 {[%clk 0:02:07.6]} 19. Rfe1 {[%clk
0:01:43.6]} 19... Bxc2 {[%clk 0:01:59.9]} 20. Qe2 {[%clk 0:01:40.9]} 20... Bg6
{[%clk 0:01:58.3]} 21. d5 {[%clk 0:01:36.1]} 21... c5 {[%clk 0:01:54.6]} 22. b4
{[%clk 0:01:33.6]} 22... cxb4 {[%clk 0:01:45.2]} 23. Rec1 {[%clk 0:01:28.7]}
23... Kb8 {[%clk 0:01:44.6]} 24. a3 {[%clk 0:01:19.9]} 24... f5 {[%clk
0:01:41.3]} 25. axb4 {[%clk 0:01:18.9]} 25... Bxa1 {[%clk 0:01:40.9]} 26. Rxa1
{[%clk 0:01:16.9]} 26... b6 {[%clk 0:01:40.5]} 27. Rc1 {[%clk 0:01:12.6]} 27...
Qd6 {[%clk 0:01:30.1]} 28. Qd2 {[%clk 0:01:04.8]} 28... e5 {[%clk 0:01:25]} 29.
Bb5 {[%clk 0:00:55.6]} 29... Rc8 {[%clk 0:01:13.3]} 30. Bc6 {[%clk 0:00:49.5]}
30... f4 {[%clk 0:01:08.8]} 31. Bc5 {[%clk 0:00:29.1]} 31... Nxc5 {[%clk
0:01:00.5]} 32. bxc5 {[%clk 0:00:28]} 32... Qc7 {[%clk 0:00:55.1]} 33. cxb6
{[%clk 0:00:22.7]} 33... Qxb6 {[%clk 0:00:51.8]} 34. Ra1 {[%clk 0:00:12.2]}
34... fxg3 {[%clk 0:00:49.2]} 35. Ra2 {[%clk 0:00:11.7]} 35... gxf2+ {[%clk
0:00:47.5]} 36. Qxf2 {[%clk 0:00:11.4]} 36... Qxf2+ {[%clk 0:00:42.6]} 37. Rxf2
{[%clk 0:00:09.1]} 37... e4 {[%clk 0:00:39.2]} 38. Rb2+ {[%clk 0:00:08.6]} 38...
Kc7 {[%clk 0:00:39.2]} 39. Rb7+ {[%clk 0:00:09.5]} 39... Kd6 {[%clk 0:00:39.3]}
40. Rxa7 {[%clk 0:00:09.8]} 40... Rxc6 {[%clk 0:00:39.1]} 41. dxc6 {[%clk
0:00:09]} 41... Rc8 {[%clk 0:00:37]} 42. Rg7 {[%clk 0:00:07]} 42... Be8 {[%clk
0:00:35.7]} 43. Kf2 {[%clk 0:00:06.2]} 43... Bxc6 {[%clk 0:00:34.9]} 44. Ke3
{[%clk 0:00:06]} 44... Rf8 {[%clk 0:00:32.5]} 45. Rg6+ {[%clk 0:00:06.2]} 45...
Kc5 {[%clk 0:00:31.5]} 46. Rg5+ {[%clk 0:00:06.2]} 46... Kc4 {[%clk 0:00:28.9]}
47. Re5 {[%clk 0:00:05.8]} 47... Rg8 {[%clk 0:00:26.5]} 48. Re6 {[%clk
0:00:05.1]} 48... Kd5 {[%clk 0:00:25.5]} 49. Rh6 {[%clk 0:00:04.5]} 49... Rxg2
{[%clk 0:00:25]} 50. Rh5+ {[%clk 0:00:05.2]} 50... Kc4 {[%clk 0:00:23.8]} 51.
Rh6 {[%clk 0:00:05.5]} 51... Bd5 {[%clk 0:00:22.7]} 52. Rh8 {[%clk 0:00:05.1]}
52... Rg3+ {[%clk 0:00:22.6]} 53. Ke2 {[%clk 0:00:04.9]} 53... e3 {[%clk
0:00:20.7]} 54. Rc8+ {[%clk 0:00:04.8]} 54... Kd4 {[%clk 0:00:20.1]} 55. Rb8
{[%clk 0:00:02.7]} 55... Rg2+ {[%clk 0:00:19.7]} 56. Kf1 {[%clk 0:00:02.2]}
56... Rf2+ {[%clk 0:00:19.4]} 57. Ke1 {[%clk 0:00:02.2]} 57... Be4 {[%clk
0:00:17.7]} 58. Rb4+ {[%clk 0:00:02.4]} 58... Kd3 {[%clk 0:00:17.1]} 59. Rb3+
{[%clk 0:00:02.9]} 59... Kd4 {[%clk 0:00:15.9]} 60. Rb4+ {[%clk 0:00:03.4]}
60... Ke5 {[%clk 0:00:15.6]} 61. Rb5+ {[%clk 0:00:03.9]} 61... Kf4 {[%clk
0:00:14.3]} 62. Rb8 {[%clk 0:00:04.5]} 62... Rh2 {[%clk 0:00:12.8]} 63. Rf8+
{[%clk 0:00:04.6]} 63... Bf5 {[%clk 0:00:11.5]} 64. Re8 {[%clk 0:00:02.5]} 64...
Bg4 {[%clk 0:00:09]} 65. Rf8+ {[%clk 0:00:02.1]} 65... Kg3 {[%clk 0:00:08.2]}
0-1

[Event "Early-Titled-Tuesday-Blitz-April-23-2024"]
[Site "Chess.com"]
[Date "2024.04.23"]
[Round "11"]
[White "rasmussvane"]
[Black "bubeliang"]
[Result "1-0"]
[WhiteElo "2953"]
[BlackElo "2784"]
[TimeControl "180+1"]
[EndTime "10:12:56 PDT"]
[Termination "rasmussvane won by checkmate"]

1. Nf3 {[%clk 0:03:00.9]} 1... Nf6 {[%clk 0:02:56.6]} 2. g3 {[%clk 0:03:00.4]}
2... d5 {[%clk 0:02:50.4]} 3. Bg2 {[%clk 0:03:00.2]} 3... e6 {[%clk 0:02:47.8]}
4. O-O {[%clk 0:02:59.7]} 4... Be7 {[%clk 0:02:47.5]} 5. c4 {[%clk 0:02:59.8]}
5... dxc4 {[%clk 0:02:45.8]} 6. Na3 {[%clk 0:02:58.3]} 6... a6 {[%clk
0:02:43.3]} 7. Nxc4 {[%clk 0:02:58.2]} 7... b5 {[%clk 0:02:43.6]} 8. Na5 {[%clk
0:02:18.9]} 8... Nd5 {[%clk 0:02:34.2]} 9. Ne5 {[%clk 0:02:11.8]} 9... O-O
{[%clk 0:02:30.9]} 10. Nac6 {[%clk 0:02:10.2]} 10... Nxc6 {[%clk 0:02:27.3]} 11.
Nxc6 {[%clk 0:02:11.1]} 11... Qd7 {[%clk 0:02:25.5]} 12. Nxe7+ {[%clk 0:02:11]}
12... Qxe7 {[%clk 0:02:26.4]} 13. d4 {[%clk 0:02:04.8]} 13... Bb7 {[%clk
0:02:24.7]} 14. Bd2 {[%clk 0:02:04.4]} 14... c5 {[%clk 0:02:19.7]} 15. dxc5
{[%clk 0:02:03.7]} 15... Qxc5 {[%clk 0:02:20.3]} 16. Qb3 {[%clk 0:01:56.8]}
16... Rac8 {[%clk 0:02:16.5]} 17. Rac1 {[%clk 0:01:28.7]} 17... Qb6 {[%clk
0:02:09.3]} 18. e4 {[%clk 0:01:25]} 18... Nf6 {[%clk 0:02:05.5]} 19. Be3 {[%clk
0:01:22.8]} 19... Qa5 {[%clk 0:02:00.9]} 20. f3 {[%clk 0:01:18.1]} 20... Rfd8
{[%clk 0:01:57.4]} 21. a3 {[%clk 0:01:13.3]} 21... h6 {[%clk 0:01:52.9]} 22. Qb4
{[%clk 0:00:59]} 22... Qxb4 {[%clk 0:01:42.4]} 23. axb4 {[%clk 0:00:59.9]} 23...
Nd7 {[%clk 0:01:40.5]} 24. Bd4 {[%clk 0:00:49.5]} 24... Nb8 {[%clk 0:01:30]} 25.
Bb6 {[%clk 0:00:49.1]} 25... Re8 {[%clk 0:01:22.5]} 26. Kf2 {[%clk 0:00:47.1]}
26... Nc6 {[%clk 0:01:22.4]} 27. Bc5 {[%clk 0:00:44.9]} 27... a5 {[%clk
0:01:22]} 28. bxa5 {[%clk 0:00:44]} 28... Nxa5 {[%clk 0:01:22.9]} 29. Bb4 {[%clk
0:00:42.6]} 29... Nc4 {[%clk 0:01:21.6]} 30. b3 {[%clk 0:00:42.1]} 30... Ne5
{[%clk 0:01:21.2]} 31. Ke2 {[%clk 0:00:37.4]} 31... Nc6 {[%clk 0:01:16.9]} 32.
Bc3 {[%clk 0:00:34.1]} 32... b4 {[%clk 0:01:16.4]} 33. Bd2 {[%clk 0:00:20.3]}
33... Ba6+ {[%clk 0:01:15.1]} 34. Ke3 {[%clk 0:00:20.8]} 34... Bxf1 {[%clk
0:01:16]} 35. Bxf1 {[%clk 0:00:21.3]} 35... Na5 {[%clk 0:01:03.6]} 36. Rb1
{[%clk 0:00:13.4]} 36... Rb8 {[%clk 0:01:02.9]} 37. Bd3 {[%clk 0:00:13.6]} 37...
e5 {[%clk 0:01:02.1]} 38. Rb2 {[%clk 0:00:12.6]} 38... Red8 {[%clk 0:01:00.4]}
39. Ke2 {[%clk 0:00:12.3]} 39... Nc6 {[%clk 0:01:00.6]} 40. Bc4 {[%clk
0:00:10.8]} 40... Nd4+ {[%clk 0:01:00.6]} 41. Ke3 {[%clk 0:00:10.9]} 41... g6
{[%clk 0:00:58.7]} 42. f4 {[%clk 0:00:09.2]} 42... Nc6 {[%clk 0:00:52.5]} 43.
Bd5 {[%clk 0:00:08.4]} 43... Ne7 {[%clk 0:00:52.8]} 44. Bc4 {[%clk 0:00:08.9]}
44... exf4+ {[%clk 0:00:44.3]} 45. gxf4 {[%clk 0:00:09.8]} 45... Kg7 {[%clk
0:00:45.1]} 46. Ra2 {[%clk 0:00:09.5]} 46... Rd7 {[%clk 0:00:40]} 47. Ra4 {[%clk
0:00:09.1]} 47... Rdb7 {[%clk 0:00:36.8]} 48. Bc1 {[%clk 0:00:09.3]} 48... Nc8
{[%clk 0:00:34.2]} 49. Bb2+ {[%clk 0:00:09.7]} 49... Kh7 {[%clk 0:00:34.7]} 50.
Bd5 {[%clk 0:00:09.2]} 50... Nb6 {[%clk 0:00:31.1]} 51. Ra5 {[%clk 0:00:03.4]}
51... Nxd5+ {[%clk 0:00:29.8]} 52. exd5 {[%clk 0:00:04.3]} 52... Rc8 {[%clk
0:00:28.4]} 53. Be5 {[%clk 0:00:04.4]} 53... g5 {[%clk 0:00:22.7]} 54. f5 {[%clk
0:00:03.7]} 54... Re7 {[%clk 0:00:20.2]} 55. Kd4 {[%clk 0:00:04.2]} 55... Rd7
{[%clk 0:00:15.4]} 56. d6 {[%clk 0:00:04.7]} 56... f6 {[%clk 0:00:15.9]} 57. Bg3
{[%clk 0:00:04.2]} 57... h5 {[%clk 0:00:14.4]} 58. Kd5 {[%clk 0:00:04.1]} 58...
h4 {[%clk 0:00:14.5]} 59. Bf2 {[%clk 0:00:04.5]} 59... Rcd8 {[%clk 0:00:13.7]}
60. Bc5 {[%clk 0:00:04.7]} 60... Kh6 {[%clk 0:00:13.8]} 61. Bxb4 {[%clk
0:00:05]} 61... Kh5 {[%clk 0:00:13.5]} 62. Ra4 {[%clk 0:00:01.9]} 62... g4
{[%clk 0:00:12.1]} 63. Ke6 {[%clk 0:00:02.1]} 63... Rb7 {[%clk 0:00:06.9]} 64.
Bc3 {[%clk 0:00:01.6]} 64... Re8+ {[%clk 0:00:05.1]} 65. Kd5 {[%clk 0:00:01.5]}
65... Rb5+ {[%clk 0:00:04.7]} 66. Kc6 {[%clk 0:00:01.9]} 66... Rxb3 {[%clk
0:00:04.1]} 67. Bxf6 {[%clk 0:00:02.5]} 67... Rf8 {[%clk 0:00:02.9]} 68. Be7
{[%clk 0:00:02.8]} 68... Rg8 {[%clk 0:00:02.8]} 69. d7 {[%clk 0:00:03.3]} 69...
Rd3 {[%clk 0:00:03.5]} 70. f6 {[%clk 0:00:03.5]} 70... Kg6 {[%clk 0:00:02.7]}
71. Rxg4+ {[%clk 0:00:03.4]} 71... Kf7 {[%clk 0:00:03]} 72. Rxg8 {[%clk
0:00:04.3]} 72... Kxg8 {[%clk 0:00:03.6]} 73. d8=Q+ {[%clk 0:00:05]} 73... Rxd8
{[%clk 0:00:04.4]} 74. Bxd8 {[%clk 0:00:05.9]} 74... Kf7 {[%clk 0:00:05.3]} 75.
Kd6 {[%clk 0:00:06.6]} 75... Kg6 {[%clk 0:00:05.6]} 76. Ke7 {[%clk 0:00:06.8]}
76... Kg5 {[%clk 0:00:06.5]} 77. f7 {[%clk 0:00:07.4]} 77... Kg4 {[%clk
0:00:07.4]} 78. f8=Q {[%clk 0:00:08]} 78... Kh3 {[%clk 0:00:08.3]} 79. Qf3+
{[%clk 0:00:08.1]} 79... Kxh2 {[%clk 0:00:09.2]} 80. Bc7+ {[%clk 0:00:08.1]}
80... Kg1 {[%clk 0:00:09.8]} 81. Qg4+ {[%clk 0:00:07.7]} 81... Kh1 {[%clk
0:00:09.5]} 82. Qh3+ {[%clk 0:00:07.1]} 82... Kg1 {[%clk 0:00:10.2]} 83. Bb6#
{[%clk 0:00:07.6]} 1-0

[Event "Early-Titled-Tuesday-Blitz-April-23-2024"]
[Site "Chess.com"]
[Date "2024.04.23"]
[Round "11"]
[White "LikeWater"]
[Black "vladgoncharov"]
[Result "0-1"]
[WhiteElo "2673"]
[BlackElo "2611"]
[TimeControl "180+1"]
[EndTime "10:12:56 PDT"]
[Termination "vladgoncharov won on time"]

1. e4 {[%clk 0:03:00.9]} 1... e6 {[%clk 0:02:59.3]} 2. d3 {[%clk 0:02:58.2]}
2... c5 {[%clk 0:02:54.5]} 3. g3 {[%clk 0:02:56.1]} 3... Nc6 {[%clk 0:02:54.1]}
4. Bg2 {[%clk 0:02:56.2]} 4... d6 {[%clk 0:02:53.5]} 5. Ne2 {[%clk 0:02:54.3]}
5... g6 {[%clk 0:02:51.8]} 6. h4 {[%clk 0:02:49.5]} 6... Nf6 {[%clk 0:02:50.1]}
7. c3 {[%clk 0:02:41.2]} 7... e5 {[%clk 0:02:47.2]} 8. Bg5 {[%clk 0:02:34.1]}
8... h6 {[%clk 0:02:45.9]} 9. Bxf6 {[%clk 0:02:31.4]} 9... Qxf6 {[%clk
0:02:45.3]} 10. h5 {[%clk 0:02:32.3]} 10... gxh5 {[%clk 0:02:35.1]} 11. Nd2
{[%clk 0:02:09.1]} 11... Bg4 {[%clk 0:02:25.4]} 12. Qb3 {[%clk 0:02:04]} 12...
O-O-O {[%clk 0:02:21.4]} 13. Nc4 {[%clk 0:02:03.3]} 13... Bf3 {[%clk 0:02:03.7]}
14. Bxf3 {[%clk 0:01:32.2]} 14... Qxf3 {[%clk 0:02:02.6]} 15. Rh2 {[%clk
0:01:30.9]} 15... Be7 {[%clk 0:01:54]} 16. Ne3 {[%clk 0:01:27.6]} 16... Bg5
{[%clk 0:01:53.6]} 17. Ng1 {[%clk 0:01:17.3]} 17... Qf6 {[%clk 0:01:48]} 18. Nd5
{[%clk 0:01:17.5]} 18... Qg6 {[%clk 0:01:45.9]} 19. Ne2 {[%clk 0:01:01.4]} 19...
f5 {[%clk 0:01:34.6]} 20. f4 {[%clk 0:00:59.5]} 20... exf4 {[%clk 0:01:18.5]}
21. gxf4 {[%clk 0:01:00.4]} 21... fxe4 {[%clk 0:01:18.5]} 22. dxe4 {[%clk
0:00:57.5]} 22... Be7 {[%clk 0:01:00.6]} 23. O-O-O {[%clk 0:00:33.7]} 23... Qxe4
{[%clk 0:00:57.4]} 24. Ng3 {[%clk 0:00:29.4]} 24... Qf3 {[%clk 0:00:51.9]} 25.
Nf5 {[%clk 0:00:21.1]} 25... Bf8 {[%clk 0:00:33.8]} 26. Rhd2 {[%clk 0:00:09.5]}
26... Qg4 {[%clk 0:00:29.6]} 27. Nfe3 {[%clk 0:00:08.6]} 27... Qg7 {[%clk
0:00:22]} 28. f5 {[%clk 0:00:04]} 28... h4 {[%clk 0:00:22.1]} 29. f6 {[%clk
0:00:04.2]} 29... Qg5 {[%clk 0:00:21.5]} 30. Nc4 {[%clk 0:00:02.8]} 30... h3
{[%clk 0:00:19.2]} 31. Kb1 {[%clk 0:00:02.7]} 31... h5 {[%clk 0:00:16.3]} 32. a4
{[%clk 0:00:02.8]} 32... h4 {[%clk 0:00:15.5]} 33. Ka2 {[%clk 0:00:03.2]} 33...
Rg8 {[%clk 0:00:12.9]} 34. a5 {[%clk 0:00:03.7]} 34... a6 {[%clk 0:00:10.5]} 35.
Ncb6+ {[%clk 0:00:02.7]} 35... Kb8 {[%clk 0:00:10.4]} 36. Re2 {[%clk 0:00:02.6]}
36... Nxa5 {[%clk 0:00:08.3]} 37. Qa4 {[%clk 0:00:02.5]} 37... Nc6 {[%clk
0:00:08.3]} 38. Rde1 {[%clk 0:00:02.5]} 38... Qg6 {[%clk 0:00:08]} 39. Qc4
{[%clk 0:00:01.8]} 39... Rh8 {[%clk 0:00:07.2]} 40. Qf4 {[%clk 0:00:01.8]} 40...
Ne5 {[%clk 0:00:07]} 41. Rxe5 {[%clk 0:00:01.7]} 41... dxe5 {[%clk 0:00:07.4]}
42. Qxe5+ {[%clk 0:00:02.6]} 42... Bd6 {[%clk 0:00:07.7]} 43. Qe6 {[%clk
0:00:01.5]} 43... Rhe8 {[%clk 0:00:05.9]} 44. Nd7+ {[%clk 0:00:01.9]} 44... Rxd7
{[%clk 0:00:06.2]} 45. Qxe8+ {[%clk 0:00:01.1]} 45... Qxe8 {[%clk 0:00:06.6]}
46. Rxe8+ {[%clk 0:00:02]} 46... Ka7 {[%clk 0:00:07]} 47. Rh8 {[%clk 0:00:02.5]}
47... h2 {[%clk 0:00:06.8]} 48. Rxh4 {[%clk 0:00:02.3]} 48... Rf7 {[%clk
0:00:04.4]} 49. Rh6 {[%clk 0:00:02.7]} 49... Be5 {[%clk 0:00:02.9]} 50. c4
{[%clk 0:00:02.7]} 50... b5 {[%clk 0:00:02.4]} 51. Kb3 {[%clk 0:00:03]} 51...
Kb7 {[%clk 0:00:02.5]} 52. Kc2 {[%clk 0:00:03.2]} 52... Kc6 {[%clk 0:00:02.9]}
53. b3 {[%clk 0:00:03.4]} 53... bxc4 {[%clk 0:00:03.4]} 54. bxc4 {[%clk
0:00:04.3]} 54... Kd6 {[%clk 0:00:04]} 55. Kd3 {[%clk 0:00:04.8]} 55... Ke6
{[%clk 0:00:04.5]} 56. Ke4 {[%clk 0:00:05.4]} 56... a5 {[%clk 0:00:05]} 57. Rh5
{[%clk 0:00:05.2]} 57... Bd6 {[%clk 0:00:05.5]} 58. Rh8 {[%clk 0:00:04.7]} 58...
a4 {[%clk 0:00:05.8]} 59. Re8+ {[%clk 0:00:04.7]} 59... Kd7 {[%clk 0:00:06.2]}
60. Rh8 {[%clk 0:00:05.2]} 60... a3 {[%clk 0:00:05.7]} 61. Nc3 {[%clk
0:00:01.4]} 61... Rxf6 {[%clk 0:00:05]} 62. Rh7+ {[%clk 0:00:01.6]} 62... Kc6
{[%clk 0:00:04.9]} 63. Kd3 {[%clk 0:00:01.4]} 63... Rf3+ {[%clk 0:00:04.8]} 64.
Kc2 {[%clk 0:00:02]} 64... Rf2+ {[%clk 0:00:03.4]} 65. Kb3 {[%clk 0:00:02.4]}
65... Rg2 {[%clk 0:00:03.4]} 66. Kxa3 {[%clk 0:00:02.3]} 66... Rg1 {[%clk
0:00:03.9]} 67. Nd5 {[%clk 0:00:01.4]} 67... h1=Q {[%clk 0:00:03.8]} 0-1

[Event "Early-Titled-Tuesday-Blitz-April-23-2024"]
[Site "Chess.com"]
[Date "2024.04.23"]
[Round "11"]
[White "shimastream"]
[Black "Grischuk"]
[Result "0-1"]
[WhiteElo "3055"]
[BlackElo "3092"]
[TimeControl "180+1"]
[EndTime "10:12:57 PDT"]
[Termination "Grischuk won on time"]

1. d4 {[%clk 0:03:00.4]} 1... d5 {[%clk 0:02:59.2]} 2. Nf3 {[%clk 0:02:58.1]}
2... Nf6 {[%clk 0:02:59.3]} 3. c4 {[%clk 0:02:58.4]} 3... c6 {[%clk 0:02:59.5]}
4. cxd5 {[%clk 0:02:56.2]} 4... cxd5 {[%clk 0:03:00.4]} 5. Nc3 {[%clk
0:02:56.7]} 5... Nc6 {[%clk 0:03:00.5]} 6. Bf4 {[%clk 0:02:57.4]} 6... Bf5
{[%clk 0:03:00.2]} 7. e3 {[%clk 0:02:55.1]} 7... e6 {[%clk 0:02:59.8]} 8. Ne5
{[%clk 0:02:54.5]} 8... Nxe5 {[%clk 0:02:58.1]} 9. Bxe5 {[%clk 0:02:54.6]} 9...
Nd7 {[%clk 0:02:49.5]} 10. Bg3 {[%clk 0:02:46.9]} 10... Be7 {[%clk 0:02:41.8]}
11. Qb3 {[%clk 0:02:42]} 11... Qb6 {[%clk 0:02:08.3]} 12. Bb5 {[%clk 0:02:41.4]}
12... Rd8 {[%clk 0:02:08.2]} 13. O-O {[%clk 0:02:26.4]} 13... O-O {[%clk
0:02:08.2]} 14. Rfc1 {[%clk 0:02:27]} 14... a6 {[%clk 0:01:57]} 15. Ba4 {[%clk
0:02:06.4]} 15... Qxb3 {[%clk 0:01:48.1]} 16. Bxb3 {[%clk 0:02:07.3]} 16... Rc8
{[%clk 0:01:47.9]} 17. Nxd5 {[%clk 0:01:44.2]} 17... exd5 {[%clk 0:01:45.6]} 18.
Bxd5 {[%clk 0:01:45.1]} 18... b5 {[%clk 0:01:01.3]} 19. Bb7 {[%clk 0:01:44.3]}
19... Rxc1+ {[%clk 0:00:58.3]} 20. Rxc1 {[%clk 0:01:45.2]} 20... Nf6 {[%clk
0:00:58.7]} 21. f3 {[%clk 0:01:12.6]} 21... Be6 {[%clk 0:00:57.5]} 22. b3 {[%clk
0:01:05.1]} 22... Ba3 {[%clk 0:00:40.8]} 23. Rc7 {[%clk 0:00:51.4]} 23... Nd5
{[%clk 0:00:27.1]} 24. Bxd5 {[%clk 0:00:51.3]} 24... Bxd5 {[%clk 0:00:28]} 25.
e4 {[%clk 0:00:52.2]} 25... Be6 {[%clk 0:00:26.1]} 26. d5 {[%clk 0:00:52.6]}
26... Bc8 {[%clk 0:00:26.8]} 27. Kf1 {[%clk 0:00:39.4]} 27... h6 {[%clk
0:00:22.1]} 28. h4 {[%clk 0:00:35.5]} 28... h5 {[%clk 0:00:19.4]} 29. Ke2 {[%clk
0:00:31.7]} 29... Re8 {[%clk 0:00:18.7]} 30. Kd3 {[%clk 0:00:31]} 30... f6
{[%clk 0:00:17.4]} 31. Bf4 {[%clk 0:00:22.5]} 31... Bf8 {[%clk 0:00:15.8]} 32.
Kd4 {[%clk 0:00:21]} 32... Rd8 {[%clk 0:00:11.2]} 33. Ra7 {[%clk 0:00:17.2]}
33... Rd7 {[%clk 0:00:07.9]} 34. Ra8 {[%clk 0:00:17.2]} 34... Bb7 {[%clk
0:00:08.3]} 35. Rb8 {[%clk 0:00:17.5]} 35... Kf7 {[%clk 0:00:08.7]} 36. a4
{[%clk 0:00:09.9]} 36... bxa4 {[%clk 0:00:06.4]} 37. bxa4 {[%clk 0:00:10.8]}
37... Be7 {[%clk 0:00:04.6]} 38. Kc4 {[%clk 0:00:08.2]} 38... Bd8 {[%clk
0:00:04.1]} 39. Kb4 {[%clk 0:00:07.3]} 39... Bb6 {[%clk 0:00:03.6]} 40. a5
{[%clk 0:00:06.6]} 40... Ba7 {[%clk 0:00:03.8]} 41. Rh8 {[%clk 0:00:05.8]} 41...
Kg6 {[%clk 0:00:03.6]} 42. Kc4 {[%clk 0:00:05.3]} 42... Bf2 {[%clk 0:00:02.9]}
43. g3 {[%clk 0:00:05.1]} 43... Be1 {[%clk 0:00:02.2]} 44. Kc5 {[%clk
0:00:04.4]} 44... Bxa5 {[%clk 0:00:02.4]} 45. Be3 {[%clk 0:00:04]} 45... Bc7
{[%clk 0:00:02.1]} 46. Bf4 {[%clk 0:00:04.4]} 46... Bd8 {[%clk 0:00:02.2]} 47.
Rg8 {[%clk 0:00:04.3]} 47... a5 {[%clk 0:00:02.1]} 48. Kb5 {[%clk 0:00:04.3]}
48... Bxd5 {[%clk 0:00:01.5]} 49. exd5 {[%clk 0:00:04.1]} 49... Rxd5+ {[%clk
0:00:02.4]} 50. Kc6 {[%clk 0:00:05]} 50... Rd3 {[%clk 0:00:02.7]} 51. Re8 {[%clk
0:00:04.9]} 51... Kf7 {[%clk 0:00:02.8]} 52. Re4 {[%clk 0:00:05.1]} 52... Rxf3
{[%clk 0:00:02.8]} 53. Kd7 {[%clk 0:00:04.5]} 53... Rd3+ {[%clk 0:00:03]} 54.
Kc6 {[%clk 0:00:04.9]} 54... Be7 {[%clk 0:00:03.2]} 55. Bc7 {[%clk 0:00:03.3]}
55... Bb4 {[%clk 0:00:03.3]} 56. Kb5 {[%clk 0:00:03.7]} 56... Rd5+ {[%clk
0:00:02.5]} 57. Ka4 {[%clk 0:00:03.2]} 57... Rf5 {[%clk 0:00:03.3]} 58. Rc4
{[%clk 0:00:03]} 58... g5 {[%clk 0:00:03.3]} 59. hxg5 {[%clk 0:00:03.4]} 59...
fxg5 {[%clk 0:00:04.2]} 60. Rd4 {[%clk 0:00:03.8]} 60... Ke6 {[%clk 0:00:04.3]}
61. Bb8 {[%clk 0:00:03.3]} 61... Rd5 {[%clk 0:00:04.2]} 62. Rc4 {[%clk
0:00:03.6]} 62... Kf5 {[%clk 0:00:04.4]} 63. Kb3 {[%clk 0:00:02.9]} 63... Rd3+
{[%clk 0:00:04]} 64. Ka4 {[%clk 0:00:03.3]} 64... Ra3+ {[%clk 0:00:04.6]} 65.
Kb5 {[%clk 0:00:03.5]} 65... Rd3 {[%clk 0:00:05.2]} 66. Ka4 {[%clk 0:00:03.8]}
66... Rd8 {[%clk 0:00:05.1]} 67. Bc7 {[%clk 0:00:02.9]} 67... Re8 {[%clk
0:00:05]} 68. Kb5 {[%clk 0:00:03.8]} 68... Re4 {[%clk 0:00:05]} 69. Rc6 {[%clk
0:00:03.8]} 69... Kg4 {[%clk 0:00:04.8]} 70. Rg6 {[%clk 0:00:03.6]} 70... Be1
{[%clk 0:00:04.6]} 71. Bd8 {[%clk 0:00:01.6]} 71... Re5+ {[%clk 0:00:04.9]} 72.
Kc4 {[%clk 0:00:02.2]} 72... Bxg3 {[%clk 0:00:04.7]} 73. Kd4 {[%clk 0:00:02.5]}
73... Rf5 {[%clk 0:00:05]} 74. Ke4 {[%clk 0:00:02.6]} 74... h4 {[%clk
0:00:05.5]} 75. Rh6 {[%clk 0:00:02.5]} 75... h3 {[%clk 0:00:05]} 0-1